[Event "Titled Tuesday Blitz October 25 Late 2022"]
[White "Aggelis, Nikolaos"]
[Black "Sabar, Ethmane Daouda"]
[WhiteFideId "4213220"]
[BlackFideId "19600097"]
[WhiteElo "2187"]
[BlackElo "1950"]
[Result "0-1"]
[Round "01"]
[TimeControl "180+1"]
[Date "2022.10.26"]
[WhiteClock "0:00:01"]
[BlackClock "0:00:10"]

1. d4 {[%clk 0:02:59]}  d5 {[%clk 0:02:54]} 2. Nf3 {[%clk 0:02:58]}  e6 {[%clk 0:02:51]} 3. g3 {[%clk 0:02:55]}  Nf6 {[%clk 0:02:49]} 4. Bg2 {[%clk 0:02:55]}  c5 {[%clk 0:02:46]} 5. O-O {[%clk 0:02:56]}  Nc6 {[%clk 0:02:46]} 6. c4 {[%clk 0:02:55]}  cxd4 {[%clk 0:02:45]} 7. Nxd4 {[%clk 0:02:55]}  Bd7 {[%clk 0:02:40]} 8. cxd5 {[%clk 0:02:50]}  exd5 {[%clk 0:02:37]} 9. Nc3 {[%clk 0:02:49]}  Be6 {[%clk 0:02:23]} 10. Bf4 {[%clk 0:02:41]}  a6 {[%clk 0:02:14]} 11. Rc1 {[%clk 0:02:35]}  Bd6 {[%clk 0:02:10]} 12. Nxc6 {[%clk 0:02:16]}  bxc6 {[%clk 0:02:11]} 13. Qa4 {[%clk 0:02:15]}  Qd7 {[%clk 0:02:04]} 14. Bxd6 {[%clk 0:02:13]}  Qxd6 {[%clk 0:02:04]} 15. e4 {[%clk 0:02:09]}  O-O {[%clk 0:01:58]} 16. Rfe1 {[%clk 0:01:55]}  dxe4 {[%clk 0:01:52]} 17. Nxe4 {[%clk 0:01:35]}  Nxe4 {[%clk 0:01:53]} 18. Bxe4 {[%clk 0:01:35]}  Rab8 {[%clk 0:01:51]} 19. b3 {[%clk 0:01:16]}  Bd5 {[%clk 0:01:43]} 20. Qxa6 {[%clk 0:01:08]}  Qb4 {[%clk 0:01:25]} 21. Bxd5 {[%clk 0:01:02]}  cxd5 {[%clk 0:01:26]} 22. Qd3 {[%clk 0:01:01]}  Ra8 {[%clk 0:01:20]} 23. Re2 {[%clk 0:00:57]}  Qa3 {[%clk 0:01:13]} 24. Rd1 {[%clk 0:00:51]}  Rfd8 {[%clk 0:01:10]} 25. Qd4 {[%clk 0:00:48]}  h6 {[%clk 0:01:01]} 26. h4 {[%clk 0:00:48]}  Qa7 {[%clk 0:01:00]} 27. Qxa7 {[%clk 0:00:37]}  Rxa7 {[%clk 0:01:00]} 28. Rd4 {[%clk 0:00:37]}  Rda8 {[%clk 0:00:47]} 29. a4 {[%clk 0:00:36]}  Rb8 {[%clk 0:00:43]} 30. Re3 {[%clk 0:00:34]}  Rab7 {[%clk 0:00:38]} 31. Rdd3 {[%clk 0:00:30]}  d4 {[%clk 0:00:35]} 32. Rf3 {[%clk 0:00:29]}  Rb4 {[%clk 0:00:35]} 33. Kf1 {[%clk 0:00:29]}  f6 {[%clk 0:00:33]} 34. Ke2 {[%clk 0:00:29]}  Kf7 {[%clk 0:00:34]} 35. Kd2 {[%clk 0:00:30]}  Ke6 {[%clk 0:00:34]} 36. Kc2 {[%clk 0:00:30]}  Kd5 {[%clk 0:00:34]} 37. Rf5+ {[%clk 0:00:28]}  Ke4 {[%clk 0:00:34]} 38. Rf4+ {[%clk 0:00:27]}  Ke5 {[%clk 0:00:33]} 39. h5 {[%clk 0:00:25]}  Rc8+ {[%clk 0:00:33]} 40. Kb2 {[%clk 0:00:25]}  Rc6 {[%clk 0:00:28]} 41. Rg4 {[%clk 0:00:25]}  Rc7 {[%clk 0:00:27]} 42. Ka3 {[%clk 0:00:21]}  Rcb7 {[%clk 0:00:23]} 43. Rf4 {[%clk 0:00:18]}  f5 {[%clk 0:00:22]} 44. Rff3 {[%clk 0:00:17]}  Ke4 {[%clk 0:00:20]} 45. Kb2 {[%clk 0:00:14]}  Rxa4 {[%clk 0:00:19]} 46. Kc2 {[%clk 0:00:13]}  Ra2+ {[%clk 0:00:18]} 47. Kb1 {[%clk 0:00:12]}  Re2 {[%clk 0:00:17]} 48. Kc1 {[%clk 0:00:09]}  Rc7+ {[%clk 0:00:16]} 49. Kd1 {[%clk 0:00:09]}  Rcc2 {[%clk 0:00:17]} 50. b4 {[%clk 0:00:08]}  Rxf2 {[%clk 0:00:15]} 51. Rxf2 {[%clk 0:00:07]}  Rxf2 {[%clk 0:00:16]} 52. Rb3 {[%clk 0:00:07]}  d3 {[%clk 0:00:14]} 53. b5 {[%clk 0:00:07]}  Ke3 {[%clk 0:00:14]} 54. Kc1 {[%clk 0:00:06]}  Rf1+ {[%clk 0:00:13]} 55. Kb2 {[%clk 0:00:06]}  Rf2+ {[%clk 0:00:11]} 56. Kc3 {[%clk 0:00:06]}  Rc2+ {[%clk 0:00:11]} 57. Kb4 {[%clk 0:00:03]}  Rc8 {[%clk 0:00:12]} 58. b6 {[%clk 0:00:03]}  Rb8 {[%clk 0:00:12]} 59. Kc3 {[%clk 0:00:03]}  Ke2 {[%clk 0:00:11]} 60. Rb2+ {[%clk 0:00:02]}  Ke3 {[%clk 0:00:11]} 61. Kc4 {[%clk 0:00:01]}  Rc8+ {[%clk 0:00:10]} 0-1


[Site "https://www.chess.com"]

[Event "Titled Tuesday Blitz October 25 Late 2022"]
[White "Aghasiyev, Kamal"]
[Black "Weisz, Bryan"]
[WhiteFideId "13402854"]
[BlackFideId "30934133"]
[WhiteElo "2341"]
[BlackElo "2270"]
[Result "1-0"]
[Round "01"]
[TimeControl "180+1"]
[Date "2022.10.26"]
[WhiteClock "0:00:51"]
[BlackClock "0:00:09"]

1. d4 {[%clk 0:03:00]}  Nf6 {[%clk 0:02:56]} 2. c4 {[%clk 0:03:00]}  e6 {[%clk 0:02:51]} 3. Nc3 {[%clk 0:02:59]}  d5 {[%clk 0:02:47]} 4. cxd5 {[%clk 0:02:58]}  exd5 {[%clk 0:02:46]} 5. Bg5 {[%clk 0:02:58]}  Nbd7 {[%clk 0:02:44]} 6. e3 {[%clk 0:02:58]}  c6 {[%clk 0:02:43]} 7. Bd3 {[%clk 0:02:58]}  Bd6 {[%clk 0:02:40]} 8. Qc2 {[%clk 0:02:56]}  Nf8 {[%clk 0:02:38]} 9. Nf3 {[%clk 0:02:51]}  Bg4 {[%clk 0:02:22]} 10. Ne5 {[%clk 0:02:41]}  Bh5 {[%clk 0:02:16]} 11. O-O {[%clk 0:02:16]}  Ng6 {[%clk 0:01:48]} 12. g4 {[%clk 0:02:00]}  Bxe5 {[%clk 0:01:04]} 13. gxh5 {[%clk 0:01:52]}  Bxh2+ {[%clk 0:01:02]} 14. Kg2 {[%clk 0:01:44]}  Qd7 {[%clk 0:00:32]} 15. Bf5 {[%clk 0:01:39]}  Qd6 {[%clk 0:00:27]} 16. Bxf6 {[%clk 0:01:26]}  Qxf6 {[%clk 0:00:21]} 17. Kxh2 {[%clk 0:01:22]}  Nh4 {[%clk 0:00:19]} 18. Bg4 {[%clk 0:01:17]}  Nf3+ {[%clk 0:00:13]} 19. Bxf3 {[%clk 0:01:16]}  Qxf3 {[%clk 0:00:14]} 20. Qe2 {[%clk 0:01:15]}  Qf5 {[%clk 0:00:14]} 21. Rg1 {[%clk 0:01:10]}  O-O-O {[%clk 0:00:14]} 22. Qg4 {[%clk 0:01:09]}  Qxg4 {[%clk 0:00:14]} 23. Rxg4 {[%clk 0:01:09]}  g6 {[%clk 0:00:15]} 24. Rag1 {[%clk 0:01:07]}  Rde8 {[%clk 0:00:13]} 25. Rf4 {[%clk 0:01:05]}  f5 {[%clk 0:00:12]} 26. Rg5 {[%clk 0:01:05]}  b5 {[%clk 0:00:10]} 27. a3 {[%clk 0:01:03]}  a5 {[%clk 0:00:10]} 28. Kg3 {[%clk 0:01:03]}  b4 {[%clk 0:00:10]} 29. axb4 {[%clk 0:01:04]}  axb4 {[%clk 0:00:11]} 30. Na2 {[%clk 0:01:03]}  b3 {[%clk 0:00:11]} 31. Nc1 {[%clk 0:01:03]}  Re4 {[%clk 0:00:09]} 32. Rxe4 {[%clk 0:01:01]}  fxe4 {[%clk 0:00:08]} 33. Nxb3 {[%clk 0:01:01]}  gxh5 {[%clk 0:00:07]} 34. Rxh5 {[%clk 0:01:00]}  Kc7 {[%clk 0:00:08]} 35. Nc5 {[%clk 0:00:58]}  h6 {[%clk 0:00:06]} 36. Rf5 {[%clk 0:00:54]}  Kd6 {[%clk 0:00:06]} 37. Rf6+ {[%clk 0:00:54]}  Ke7 {[%clk 0:00:07]} 38. Rxc6 {[%clk 0:00:54]}  Rf8 {[%clk 0:00:08]} 39. Rxh6 {[%clk 0:00:52]}  Rf3+ {[%clk 0:00:08]} 40. Kg2 {[%clk 0:00:52]}  Rf8 {[%clk 0:00:09]} 41. Rh7+ {[%clk 0:00:51]}  Kf6 {[%clk 0:00:09]} 42. Nd7+ {[%clk 0:00:51]}  Kg6 {[%clk 0:00:09]} 43. Nxf8+ {[%clk 0:00:51]} 1-0


[Site "https://www.chess.com"]

[Event "Titled Tuesday Blitz October 25 Late 2022"]
[White "Al Hosani, Omran"]
[Black "Szente Varga, Fruzsina"]
[WhiteFideId "9308733"]
[BlackFideId "712264"]
[WhiteElo "2167"]
[BlackElo "1994"]
[Result "1-0"]
[Round "01"]
[TimeControl "180+1"]
[Date "2022.10.26"]
[WhiteClock "0:01:11"]
[BlackClock "0:00:01"]

1. d4 {[%clk 0:02:56]}  Nf6 {[%clk 0:02:59]} 2. c4 {[%clk 0:02:57]}  g6 {[%clk 0:02:59]} 3. Nc3 {[%clk 0:02:58]}  Bg7 {[%clk 0:02:59]} 4. e4 {[%clk 0:02:59]}  d6 {[%clk 0:03:00]} 5. f4 {[%clk 0:02:59]}  O-O {[%clk 0:03:00]} 6. Nf3 {[%clk 0:03:00]}  c5 {[%clk 0:03:00]} 7. d5 {[%clk 0:02:59]}  e6 {[%clk 0:03:00]} 8. Be2 {[%clk 0:02:58]}  exd5 {[%clk 0:03:00]} 9. cxd5 {[%clk 0:02:59]}  Re8 {[%clk 0:02:59]} 10. e5 {[%clk 0:03:00]}  dxe5 {[%clk 0:02:40]} 11. fxe5 {[%clk 0:03:01]}  Ng4 {[%clk 0:02:40]} 12. e6 {[%clk 0:03:01]}  fxe6 {[%clk 0:02:39]} 13. Bg5 {[%clk 0:02:56]}  Qa5 {[%clk 0:02:22]} 14. O-O {[%clk 0:02:48]}  e5 {[%clk 0:01:11]} 15. d6 {[%clk 0:02:35]}  Be6 {[%clk 0:01:10]} 16. Nd2 {[%clk 0:02:31]}  Nh6 {[%clk 0:01:06]} 17. Nde4 {[%clk 0:02:11]}  Nd7 {[%clk 0:00:45]} 18. Nd5 {[%clk 0:02:06]}  Bxd5 {[%clk 0:00:33]} 19. Qxd5+ {[%clk 0:02:07]}  Kh8 {[%clk 0:00:34]} 20. Be7 {[%clk 0:02:06]}  Qb6 {[%clk 0:00:26]} 21. Qe6 {[%clk 0:01:47]}  Nf8 {[%clk 0:00:20]} 22. Qh3 {[%clk 0:01:44]}  Nf5 {[%clk 0:00:20]} 23. Ng5 {[%clk 0:01:42]}  h6 {[%clk 0:00:16]} 24. Nf7+ {[%clk 0:01:37]}  Kg8 {[%clk 0:00:16]} 25. Bc4 {[%clk 0:01:38]}  Nxe7 {[%clk 0:00:11]} 26. Nxh6+ {[%clk 0:01:36]}  Kh7 {[%clk 0:00:11]} 27. Nf7+ {[%clk 0:01:36]}  Kg8 {[%clk 0:00:11]} 28. Ng5+ {[%clk 0:01:30]}  Nd5 {[%clk 0:00:11]} 29. Bxd5+ {[%clk 0:01:31]}  Ne6 {[%clk 0:00:12]} 30. Bxe6+ {[%clk 0:01:31]}  Rxe6 {[%clk 0:00:12]} 31. Qxe6+ {[%clk 0:01:31]}  Kh8 {[%clk 0:00:12]} 32. Nf7+ {[%clk 0:01:32]}  Kh7 {[%clk 0:00:12]} 33. Ng5+ {[%clk 0:01:26]}  Kh6 {[%clk 0:00:10]} 34. Ne4 {[%clk 0:01:18]}  c4+ {[%clk 0:00:09]} 35. Kh1 {[%clk 0:01:18]}  Kh7 {[%clk 0:00:05]} 36. Rf7 {[%clk 0:01:18]}  Rd8 {[%clk 0:00:03]} 37. Nf6+ {[%clk 0:01:11]}  Kh8 {[%clk 0:00:01]} 38. Qh3+ {[%clk 0:01:11]} 1-0


[Site "https://www.chess.com"]

[Event "Titled Tuesday Blitz October 25 Late 2022"]
[White "Aldokhin, Ivan"]
[Black "Shapiro, Daniel"]
[WhiteFideId "24115720"]
[BlackFideId "2001780"]
[WhiteElo "2313"]
[BlackElo "2240"]
[Result "1-0"]
[Round "01"]
[TimeControl "180+1"]
[Date "2022.10.26"]
[WhiteClock "0:00:16"]
[BlackClock "0:00:19"]

1. e4 {[%clk 0:02:56]}  e5 {[%clk 0:02:58]} 2. Nf3 {[%clk 0:02:57]}  Nc6 {[%clk 0:02:58]} 3. Bb5 {[%clk 0:02:57]}  a6 {[%clk 0:02:58]} 4. Ba4 {[%clk 0:02:58]}  Nf6 {[%clk 0:02:58]} 5. O-O {[%clk 0:02:59]}  b5 {[%clk 0:02:56]} 6. Bb3 {[%clk 0:02:59]}  Bd6 {[%clk 0:02:56]} 7. d4 {[%clk 0:02:55]}  Bb7 {[%clk 0:02:50]} 8. dxe5 {[%clk 0:02:49]}  Nxe5 {[%clk 0:02:50]} 9. Nxe5 {[%clk 0:02:45]}  Bxe5 {[%clk 0:02:50]} 10. f4 {[%clk 0:02:45]}  Bd6 {[%clk 0:02:50]} 11. Nc3 {[%clk 0:02:27]}  Nxe4 {[%clk 0:02:36]} 12. Re1 {[%clk 0:02:05]}  f5 {[%clk 0:02:31]} 13. Nxe4 {[%clk 0:01:51]}  Bxe4 {[%clk 0:02:21]} 14. Bd5 {[%clk 0:01:48]}  Rb8 {[%clk 0:01:39]} 15. Bxe4 {[%clk 0:01:45]}  fxe4 {[%clk 0:01:39]} 16. Rxe4+ {[%clk 0:01:35]}  Kf8 {[%clk 0:01:39]} 17. Bd2 {[%clk 0:01:21]}  b4 {[%clk 0:01:33]} 18. Qe2 {[%clk 0:01:10]}  Qf6 {[%clk 0:01:16]} 19. Re1 {[%clk 0:01:10]}  g6 {[%clk 0:01:16]} 20. Be3 {[%clk 0:00:40]}  c5 {[%clk 0:01:02]} 21. Qxa6 {[%clk 0:00:29]}  Kg7 {[%clk 0:00:52]} 22. Qa7 {[%clk 0:00:27]}  Rhd8 {[%clk 0:00:33]} 23. Bxc5 {[%clk 0:00:26]}  Ra8 {[%clk 0:00:22]} 24. Qb6 {[%clk 0:00:23]}  Rdb8 {[%clk 0:00:20]} 25. Qxd6 {[%clk 0:00:22]}  Qxd6 {[%clk 0:00:20]} 26. Bxd6 {[%clk 0:00:22]}  Rxa2 {[%clk 0:00:21]} 27. Rxb4 {[%clk 0:00:21]}  Rxb2 {[%clk 0:00:19]} 28. Rxb8 {[%clk 0:00:20]}  Rxc2 {[%clk 0:00:19]} 29. Re7+ {[%clk 0:00:17]}  Kf6 {[%clk 0:00:19]} 30. Rf8# {[%clk 0:00:16]} 1-0


[Site "https://www.chess.com"]

[Event "Titled Tuesday Blitz October 25 Late 2022"]
[White "Andreikin, Dmitry"]
[Black "Novik, Maxim"]
[WhiteFideId "4158814"]
[BlackFideId "4102924"]
[WhiteElo "3034"]
[BlackElo "2518"]
[Result "1-0"]
[Round "01"]
[TimeControl "180+1"]
[Date "2022.10.26"]
[WhiteClock "0:02:15"]
[BlackClock "0:00:50"]

1. c4 {[%clk 0:02:56]}  g6 {[%clk 0:02:58]} 2. g3 {[%clk 0:02:56]}  Bg7 {[%clk 0:02:58]} 3. Bg2 {[%clk 0:02:56]}  c5 {[%clk 0:02:59]} 4. Nc3 {[%clk 0:02:55]}  Nc6 {[%clk 0:02:59]} 5. a3 {[%clk 0:02:55]}  a6 {[%clk 0:02:57]} 6. Rb1 {[%clk 0:02:55]}  Rb8 {[%clk 0:02:57]} 7. b4 {[%clk 0:02:52]}  cxb4 {[%clk 0:02:57]} 8. axb4 {[%clk 0:02:53]}  b5 {[%clk 0:02:57]} 9. c5 {[%clk 0:02:49]}  Bb7 {[%clk 0:02:35]} 10. Nf3 {[%clk 0:02:44]}  d6 {[%clk 0:02:35]} 11. cxd6 {[%clk 0:02:34]}  Qxd6 {[%clk 0:02:34]} 12. Ne4 {[%clk 0:02:32]}  Qc7 {[%clk 0:02:20]} 13. O-O {[%clk 0:02:30]}  Nf6 {[%clk 0:02:10]} 14. Nc5 {[%clk 0:02:30]}  Bc8 {[%clk 0:02:10]} 15. d4 {[%clk 0:02:28]}  Nd5 {[%clk 0:02:07]} 16. Qb3 {[%clk 0:02:25]}  e6 {[%clk 0:01:22]} 17. e4 {[%clk 0:02:23]}  Ndxb4 {[%clk 0:01:18]} 18. Bf4 {[%clk 0:02:21]}  Qb6 {[%clk 0:01:09]} 19. Bxb8 {[%clk 0:02:18]}  Qxb8 {[%clk 0:00:56]} 20. d5 {[%clk 0:02:18]}  Qb6 {[%clk 0:00:50]} 21. dxc6 {[%clk 0:02:18]}  Qxc5 {[%clk 0:00:50]} 22. Rfc1 {[%clk 0:02:15]}  Qe7 {[%clk 0:00:50]} 23. Qxb4 {[%clk 0:02:15]} 1-0


[Site "https://www.chess.com"]

[Event "Titled Tuesday Blitz October 25 Late 2022"]
[White "Arbunic Castro, Giovanna"]
[Black "Nozdrachev, Leonid"]
[WhiteFideId "3400549"]
[BlackFideId "24113433"]
[WhiteElo "1885"]
[BlackElo "2249"]
[Result "0-1"]
[Round "01"]
[TimeControl "180+1"]
[Date "2022.10.26"]
[WhiteClock "0:01:22"]
[BlackClock "0:02:45"]

1. e4 {[%clk 0:02:58]}  c6 {[%clk 0:02:57]} 2. d4 {[%clk 0:02:54]}  d5 {[%clk 0:02:56]} 3. e5 {[%clk 0:02:54]}  c5 {[%clk 0:02:56]} 4. dxc5 {[%clk 0:02:52]}  e6 {[%clk 0:02:57]} 5. Be3 {[%clk 0:02:49]}  Nh6 {[%clk 0:02:55]} 6. Bxh6 {[%clk 0:02:32]}  gxh6 {[%clk 0:02:55]} 7. Nf3 {[%clk 0:02:28]}  Bxc5 {[%clk 0:02:55]} 8. Bb5+ {[%clk 0:02:26]}  Nc6 {[%clk 0:02:53]} 9. Nc3 {[%clk 0:02:22]}  Qb6 {[%clk 0:02:53]} 10. Qe2 {[%clk 0:02:20]}  Rg8 {[%clk 0:02:51]} 11. g3 {[%clk 0:02:17]}  Bd7 {[%clk 0:02:50]} 12. Bxc6 {[%clk 0:02:07]}  Bxc6 {[%clk 0:02:51]} 13. O-O-O {[%clk 0:02:06]}  Bxf2 {[%clk 0:02:47]} 14. Rhf1 {[%clk 0:01:58]}  Be3+ {[%clk 0:02:47]} 15. Kb1 {[%clk 0:01:56]}  d4 {[%clk 0:02:47]} 16. Nxd4 {[%clk 0:01:24]}  Bxd4 {[%clk 0:02:48]} 17. Qd3 {[%clk 0:01:22]}  O-O-O {[%clk 0:02:45]} 0-1


[Site "https://www.chess.com"]

[Event "Titled Tuesday Blitz October 25 Late 2022"]
[White "Baglan, Esat"]
[Black "Zhigalko, Sergei"]
[WhiteFideId "6309216"]
[BlackFideId "13502956"]
[WhiteElo "2231"]
[BlackElo "2662"]
[Result "1-0"]
[Round "01"]
[TimeControl "180+1"]
[Date "2022.10.26"]
[WhiteClock "0:00:37"]
[BlackClock "0:00:07"]

1. e4 {[%clk 0:02:56]}  c5 {[%clk 0:02:59]} 2. Nf3 {[%clk 0:02:56]}  Nc6 {[%clk 0:02:58]} 3. Bb5 {[%clk 0:02:55]}  Nf6 {[%clk 0:02:57]} 4. Nc3 {[%clk 0:02:53]}  Qc7 {[%clk 0:02:55]} 5. O-O {[%clk 0:02:53]}  Nd4 {[%clk 0:02:54]} 6. Bd3 {[%clk 0:02:49]}  Ng4 {[%clk 0:02:51]} 7. g3 {[%clk 0:02:49]}  Nxf3+ {[%clk 0:02:50]} 8. Qxf3 {[%clk 0:02:50]}  Ne5 {[%clk 0:02:51]} 9. Qe3 {[%clk 0:02:45]}  e6 {[%clk 0:02:49]} 10. Be2 {[%clk 0:02:44]}  Be7 {[%clk 0:02:46]} 11. f4 {[%clk 0:02:44]}  Nc6 {[%clk 0:02:46]} 12. d3 {[%clk 0:02:43]}  Nd4 {[%clk 0:02:46]} 13. Bd1 {[%clk 0:02:43]}  O-O {[%clk 0:02:43]} 14. Bd2 {[%clk 0:02:42]}  b5 {[%clk 0:02:38]} 15. Ne2 {[%clk 0:02:40]}  Bb7 {[%clk 0:02:33]} 16. c3 {[%clk 0:02:31]}  Nc6 {[%clk 0:02:32]} 17. d4 {[%clk 0:02:26]}  cxd4 {[%clk 0:02:15]} 18. cxd4 {[%clk 0:02:27]}  Qb6 {[%clk 0:02:16]} 19. Be1 {[%clk 0:02:20]}  f5 {[%clk 0:02:10]} 20. exf5 {[%clk 0:02:07]}  Nxd4 {[%clk 0:01:41]} 21. Nxd4 {[%clk 0:02:06]}  Bc5 {[%clk 0:01:41]} 22. Bc3 {[%clk 0:01:45]}  b4 {[%clk 0:01:39]} 23. Bf3 {[%clk 0:01:42]}  bxc3 {[%clk 0:01:35]} 24. bxc3 {[%clk 0:01:43]}  Bxf3 {[%clk 0:01:34]} 25. Rxf3 {[%clk 0:01:36]}  Rxf5 {[%clk 0:01:31]} 26. Rd1 {[%clk 0:01:36]}  Rd5 {[%clk 0:01:29]} 27. Rf2 {[%clk 0:01:33]}  Rb8 {[%clk 0:01:24]} 28. Rfd2 {[%clk 0:01:33]}  Re8 {[%clk 0:01:03]} 29. Kg2 {[%clk 0:01:30]}  Rc8 {[%clk 0:00:56]} 30. Qe4 {[%clk 0:01:07]}  Bxd4 {[%clk 0:00:51]} 31. Rxd4 {[%clk 0:01:08]}  Ra5 {[%clk 0:00:51]} 32. Rxd7 {[%clk 0:01:02]}  Rxa2+ {[%clk 0:00:51]} 33. Kh3 {[%clk 0:01:03]}  Ra5 {[%clk 0:00:15]} 34. R1d6 {[%clk 0:00:58]}  Qb3 {[%clk 0:00:16]} 35. Rd8+ {[%clk 0:00:55]}  Rxd8 {[%clk 0:00:11]} 36. Rxd8+ {[%clk 0:00:56]}  Kf7 {[%clk 0:00:11]} 37. Qxh7 {[%clk 0:00:52]}  Ke7 {[%clk 0:00:03]} 38. Rg8 {[%clk 0:00:40]}  Qxc3 {[%clk 0:00:03]} 39. Rxg7+ {[%clk 0:00:40]}  Kd6 {[%clk 0:00:02]} 40. Rd7+ {[%clk 0:00:38]}  Kc5 {[%clk 0:00:02]} 41. Rc7+ {[%clk 0:00:39]}  Kb4 {[%clk 0:00:02]} 42. Rxc3 {[%clk 0:00:39]}  Kxc3 {[%clk 0:00:03]} 43. Qc7+ {[%clk 0:00:38]}  Kb4 {[%clk 0:00:03]} 44. Qd6+ {[%clk 0:00:37]}  Rc5 {[%clk 0:00:03]} 45. Qxe6 {[%clk 0:00:36]}  a5 {[%clk 0:00:04]} 46. Qb6+ {[%clk 0:00:37]}  Rb5 {[%clk 0:00:04]} 47. Qd4+ {[%clk 0:00:37]}  Kb3 {[%clk 0:00:05]} 48. f5 {[%clk 0:00:37]}  a4 {[%clk 0:00:05]} 49. f6 {[%clk 0:00:37]}  a3 {[%clk 0:00:06]} 50. f7 {[%clk 0:00:37]}  Rb4 {[%clk 0:00:06]} 51. Qxb4+ {[%clk 0:00:36]}  Kxb4 {[%clk 0:00:07]} 52. f8=Q+ {[%clk 0:00:37]} 1-0


[Site "https://www.chess.com"]

[Event "Titled Tuesday Blitz October 25 Late 2022"]
[White "Barash, Anton"]
[Black "Dilanyan, Grigor"]
[WhiteFideId "30935229"]
[BlackFideId "13303570"]
[WhiteElo "2271"]
[BlackElo "2264"]
[Result "1-0"]
[Round "01"]
[TimeControl "180+1"]
[Date "2022.10.26"]
[WhiteClock "0:00:10"]
[BlackClock "0:00:14"]

1. e4 {[%clk 0:02:59]}  e5 {[%clk 0:02:58]} 2. Nc3 {[%clk 0:02:58]}  Nc6 {[%clk 0:02:59]} 3. f4 {[%clk 0:02:58]}  Bc5 {[%clk 0:02:57]} 4. fxe5 {[%clk 0:02:54]}  Bxg1 {[%clk 0:02:51]} 5. Rxg1 {[%clk 0:02:54]}  Qh4+ {[%clk 0:02:51]} 6. g3 {[%clk 0:02:54]}  Qxh2 {[%clk 0:02:51]} 7. Rg2 {[%clk 0:02:55]}  Qh1 {[%clk 0:02:52]} 8. d4 {[%clk 0:02:33]}  d6 {[%clk 0:02:38]} 9. Be3 {[%clk 0:02:32]}  Bh3 {[%clk 0:02:33]} 10. Rg1 {[%clk 0:02:24]}  Qh2 {[%clk 0:02:30]} 11. Qf3 {[%clk 0:02:09]}  Bxf1 {[%clk 0:02:22]} 12. Rxf1 {[%clk 0:02:07]}  O-O-O {[%clk 0:02:18]} 13. O-O-O {[%clk 0:01:59]}  Qh3 {[%clk 0:02:06]} 14. exd6 {[%clk 0:01:38]}  Rxd6 {[%clk 0:02:00]} 15. Qxf7 {[%clk 0:01:26]}  Nge7 {[%clk 0:01:59]} 16. Bf4 {[%clk 0:01:20]}  Rxd4 {[%clk 0:01:48]} 17. Rxd4 {[%clk 0:01:17]}  Nxd4 {[%clk 0:01:36]} 18. Qxe7 {[%clk 0:01:17]}  Qxf1+ {[%clk 0:01:34]} 19. Kd2 {[%clk 0:01:17]}  Qf2+ {[%clk 0:01:29]} 20. Kd3 {[%clk 0:01:12]}  Kb8 {[%clk 0:00:48]} 21. Qxc7+ {[%clk 0:01:03]}  Ka8 {[%clk 0:00:48]} 22. Be3 {[%clk 0:00:55]}  Ne6 {[%clk 0:00:47]} 23. Qa5 {[%clk 0:00:23]}  Qf1+ {[%clk 0:00:45]} 24. Kd2 {[%clk 0:00:08]}  Qa6 {[%clk 0:00:30]} 25. Qxa6 {[%clk 0:00:08]}  bxa6 {[%clk 0:00:31]} 26. Nd5 {[%clk 0:00:06]}  Rf8 {[%clk 0:00:31]} 27. Ke2 {[%clk 0:00:06]}  Kb7 {[%clk 0:00:29]} 28. b4 {[%clk 0:00:06]}  Rc8 {[%clk 0:00:26]} 29. Kd3 {[%clk 0:00:05]}  Rf8 {[%clk 0:00:25]} 30. Ke2 {[%clk 0:00:06]}  h5 {[%clk 0:00:24]} 31. c4 {[%clk 0:00:06]}  g5 {[%clk 0:00:24]} 32. Ne7 {[%clk 0:00:03]}  Rf6 {[%clk 0:00:19]} 33. c5 {[%clk 0:00:02]}  h4 {[%clk 0:00:18]} 34. c6+ {[%clk 0:00:01]}  Kc7 {[%clk 0:00:17]} 35. Nd5+ {[%clk 0:00:02]}  Kxc6 {[%clk 0:00:16]} 36. Nxf6 {[%clk 0:00:02]}  h3 {[%clk 0:00:15]} 37. Ng4 {[%clk 0:00:01]}  Ng7 {[%clk 0:00:16]} 38. Kf3 {[%clk 0:00:01]}  Nh5 {[%clk 0:00:16]} 39. Bxg5 {[%clk 0:00:01]}  a5 {[%clk 0:00:15]} 40. bxa5 {[%clk 0:00:01]}  Kd6 {[%clk 0:00:14]} 41. e5+ {[%clk 0:00:01]}  Ke6 {[%clk 0:00:15]} 42. Kf2 {[%clk 0:00:01]}  Kf5 {[%clk 0:00:15]} 43. Kf3 {[%clk 0:00:02]}  Kxg5 {[%clk 0:00:15]} 44. Nf2 {[%clk 0:00:02]}  h2 {[%clk 0:00:14]} 45. Kg2 {[%clk 0:00:02]}  Kf5 {[%clk 0:00:12]} 46. g4+ {[%clk 0:00:02]}  Kxe5 {[%clk 0:00:13]} 47. gxh5 {[%clk 0:00:02]}  Kf5 {[%clk 0:00:13]} 48. h6 {[%clk 0:00:03]}  Kg5 {[%clk 0:00:14]} 49. Kxh2 {[%clk 0:00:03]}  Kxh6 {[%clk 0:00:14]} 50. Kg3 {[%clk 0:00:04]}  Kg6 {[%clk 0:00:15]} 51. Kf3 {[%clk 0:00:04]}  Kf6 {[%clk 0:00:15]} 52. Ke3 {[%clk 0:00:05]}  Ke6 {[%clk 0:00:16]} 53. Kd3 {[%clk 0:00:05]}  Kd5 {[%clk 0:00:16]} 54. Kc3 {[%clk 0:00:05]}  Kc5 {[%clk 0:00:17]} 55. a4 {[%clk 0:00:05]}  Kc6 {[%clk 0:00:15]} 56. Kb4 {[%clk 0:00:05]}  Kb7 {[%clk 0:00:15]} 57. Kb5 {[%clk 0:00:05]}  Kc7 {[%clk 0:00:12]} 58. Ka6 {[%clk 0:00:05]}  Kb8 {[%clk 0:00:12]} 59. Nd3 {[%clk 0:00:06]}  Ka8 {[%clk 0:00:13]} 60. Nb4 {[%clk 0:00:06]}  Kb8 {[%clk 0:00:14]} 61. Nd5 {[%clk 0:00:07]}  Ka8 {[%clk 0:00:13]} 62. Ne7 {[%clk 0:00:07]}  Kb8 {[%clk 0:00:12]} 63. Nc6+ {[%clk 0:00:07]}  Kc7 {[%clk 0:00:11]} 64. Nxa7 {[%clk 0:00:07]}  Kd6 {[%clk 0:00:11]} 65. Nb5+ {[%clk 0:00:07]}  Kc5 {[%clk 0:00:11]} 66. Kb7 {[%clk 0:00:07]}  Kb4 {[%clk 0:00:12]} 67. a6 {[%clk 0:00:08]}  Kxa4 {[%clk 0:00:13]} 68. a7 {[%clk 0:00:09]}  Kxb5 {[%clk 0:00:13]} 69. a8=Q {[%clk 0:00:10]}  Kc5 {[%clk 0:00:14]} 70. Qa6 {[%clk 0:00:10]}  Kb4 {[%clk 0:00:13]} 71. Qc6 {[%clk 0:00:08]}  Ka5 {[%clk 0:00:12]} 72. Kc7 {[%clk 0:00:06]}  Kb4 {[%clk 0:00:12]} 73. Kd6 {[%clk 0:00:06]}  Ka5 {[%clk 0:00:13]} 74. Qb7 {[%clk 0:00:07]}  Ka4 {[%clk 0:00:11]} 75. Kc5 {[%clk 0:00:07]}  Ka3 {[%clk 0:00:12]} 76. Kc4 {[%clk 0:00:08]}  Ka2 {[%clk 0:00:13]} 77. Kc3 {[%clk 0:00:08]}  Ka1 {[%clk 0:00:14]} 78. Kc2 {[%clk 0:00:09]}  Ka2 {[%clk 0:00:14]} 79. Qb2# {[%clk 0:00:10]} 1-0


[Site "https://www.chess.com"]